[Event "*** Titled Tuesday Blitz"]
[Site "Chess.com"]
[Date "2020.12.01"]
[Round "4"]
[White "Mr_Heisenberg13"]
[Black "TC2304"]
[Result "1-0"]
[WhiteElo "2615"]
[BlackElo "2328"]
[TimeControl "180+1"]
[EndTime "10:36:43 PST"]
[Termination "Mr_Heisenberg13 won by resignation"]

1. e4 {[%clk 0:03:00.9]} 1... c5 {[%clk 0:02:59.8]} 2. Nf3 {[%clk 0:03:01]} 2...
d6 {[%clk 0:03:00.3]} 3. d4 {[%clk 0:03:01]} 3... cxd4 {[%clk 0:03:01.2]} 4.
Nxd4 {[%clk 0:03:01.4]} 4... Nf6 {[%clk 0:03:01.7]} 5. Nc3 {[%clk 0:03:01.7]}
5... a6 {[%clk 0:03:02.3]} 6. Rg1 {[%clk 0:03:02.2]} 6... e5 {[%clk 0:03:02]} 7.
Nb3 {[%clk 0:03:01.9]} 7... Be6 {[%clk 0:03:02.6]} 8. g4 {[%clk 0:03:02.3]} 8...
d5 {[%clk 0:03:03.3]} 9. g5 {[%clk 0:03:02.6]} 9... Nxe4 {[%clk 0:03:03.6]} 10.
Nxe4 {[%clk 0:03:02.6]} 10... dxe4 {[%clk 0:03:04.5]} 11. Qxd8+ {[%clk
0:03:02.8]} 11... Kxd8 {[%clk 0:03:05.4]} 12. Bg2 {[%clk 0:03:03.2]} 12... Bd5
{[%clk 0:02:46.8]} 13. Be3 {[%clk 0:03:01.3]} 13... Kc7 {[%clk 0:02:44.8]} 14.
O-O-O {[%clk 0:03:01.4]} 14... Bc6 {[%clk 0:02:45.4]} 15. Na5 {[%clk 0:03:01.8]}
15... Be7 {[%clk 0:02:33.2]} 16. Nxc6 {[%clk 0:03:01.7]} 16... Nxc6 {[%clk
0:02:34.1]} 17. Bxe4 {[%clk 0:03:02]} 17... Rad8 {[%clk 0:02:13.6]} 18. Rxd8
{[%clk 0:02:59.7]} 18... Rxd8 {[%clk 0:02:00.7]} 19. c3 {[%clk 0:03:00.6]} 19...
Na5 {[%clk 0:01:38]} 20. b3 {[%clk 0:02:59.3]} 20... b6 {[%clk 0:01:32.3]} 21.
Rg3 {[%clk 0:02:56.9]} 21... Nb7 {[%clk 0:01:27.2]} 22. Rh3 {[%clk 0:02:55.4]}
22... Nd6 {[%clk 0:01:22.3]} 23. Bc2 {[%clk 0:02:53.8]} 23... Nb5 {[%clk
0:01:14.5]} 24. Rxh7 {[%clk 0:02:29.7]} 24... Ba3+ {[%clk 0:01:12.2]} 25. Kb1
{[%clk 0:02:29.4]} 25... Nxc3+ {[%clk 0:01:08.6]} 26. Ka1 {[%clk 0:02:30]} 26...
Nd1 {[%clk 0:00:53.4]} 27. Rxg7 {[%clk 0:02:11]} 27... Nxe3 {[%clk 0:00:49.7]}
28. Rxf7+ {[%clk 0:02:10.8]} 28... Kb8 {[%clk 0:00:31.1]} 29. fxe3 {[%clk
0:02:07.6]} 29... Rd2 {[%clk 0:00:26.9]} 30. Kb1 {[%clk 0:02:06]} 30... Rxh2
{[%clk 0:00:24.4]} 31. Rf1 {[%clk 0:02:06.5]} 31... Rg2 {[%clk 0:00:20.6]} 32.
g6 {[%clk 0:02:05.2]} 32... Kc7 {[%clk 0:00:16.7]} 33. Be4 {[%clk 0:02:03.5]}
33... Rb2+ {[%clk 0:00:16.1]} 34. Ka1 {[%clk 0:02:02.5]} 34... Rh2 {[%clk
0:00:16.4]} 35. g7 {[%clk 0:02:00.3]} 35... Bb2+ {[%clk 0:00:15.7]} 36. Kb1
{[%clk 0:01:58.7]} 36... Bc3 {[%clk 0:00:16.1]} 37. g8=Q {[%clk 0:01:56.7]}
37... Rb2+ {[%clk 0:00:17]} 38. Kc1 {[%clk 0:01:56.5]} 38... Rxa2 {[%clk
0:00:17.3]} 39. Qc4+ {[%clk 0:01:56.6]} 39... Kd6 {[%clk 0:00:17.1]} 1-0

[Event "*** Titled Tuesday Blitz"]
[Site "Chess.com"]
[Date "2020.12.01"]
[Round "4"]
[White "MathiasWomacka"]
[Black "Rodalquilar"]
[Result "0-1"]
[WhiteElo "2481"]
[BlackElo "2689"]
[TimeControl "180+1"]
[EndTime "10:36:47 PST"]
[Termination "Rodalquilar won by resignation"]

1. e4 {[%clk 0:03:00.8]} 1... d5 {[%clk 0:03:00.1]} 2. exd5 {[%clk 0:02:59.4]}
2... Qxd5 {[%clk 0:03:01]} 3. Nc3 {[%clk 0:02:59.1]} 3... Qa5 {[%clk 0:03:01.3]}
4. d4 {[%clk 0:02:59.5]} 4... Nf6 {[%clk 0:03:01.8]} 5. Nf3 {[%clk 0:02:59.2]}
5... Bf5 {[%clk 0:03:02.2]} 6. Bd2 {[%clk 0:02:57.3]} 6... e6 {[%clk 0:03:02.1]}
7. Ne4 {[%clk 0:02:30.2]} 7... Qb6 {[%clk 0:03:01.7]} 8. Nxf6+ {[%clk
0:02:29.9]} 8... gxf6 {[%clk 0:03:02.6]} 9. Bc4 {[%clk 0:02:26.5]} 9... Nc6
{[%clk 0:03:00.4]} 10. d5 {[%clk 0:02:19.8]} 10... Nb4 {[%clk 0:02:54.2]} 11.
O-O {[%clk 0:02:10]} 11... Nxd5 {[%clk 0:02:53.9]} 12. Bxd5 {[%clk 0:02:07.4]}
12... exd5 {[%clk 0:02:54.8]} 13. Re1+ {[%clk 0:02:07.1]} 13... Be6 {[%clk
0:02:55.3]} 14. Bc3 {[%clk 0:02:03.8]} 14... Be7 {[%clk 0:02:52.9]} 15. Nd4
{[%clk 0:02:03.5]} 15... O-O-O {[%clk 0:02:51.8]} 16. Nxe6 {[%clk 0:02:00.2]}
16... fxe6 {[%clk 0:02:51.7]} 17. Qg4 {[%clk 0:02:00.5]} 17... f5 {[%clk
0:02:47.7]} 18. Qe2 {[%clk 0:01:57.6]} 18... d4 {[%clk 0:02:42.8]} 19. Bd2
{[%clk 0:01:41.8]} 19... Rd6 {[%clk 0:02:42.7]} 20. Bf4 {[%clk 0:01:40.8]} 20...
Rc6 {[%clk 0:02:43.2]} 21. Be5 {[%clk 0:01:25.9]} 21... Rd8 {[%clk 0:02:43.1]}
22. Qh5 {[%clk 0:01:17.3]} 22... Qxb2 {[%clk 0:02:37.9]} 23. Qxh7 {[%clk
0:01:11.6]} 23... Bb4 {[%clk 0:02:36.7]} 24. Reb1 {[%clk 0:00:58.7]} 24... Qxc2
{[%clk 0:02:37]} 25. h4 {[%clk 0:00:53.7]} 25... Bc3 {[%clk 0:02:34.8]} 26. Rc1
{[%clk 0:00:53.4]} 26... Qe4 {[%clk 0:02:34.9]} 27. Bf6 {[%clk 0:00:48.4]} 27...
Bxa1 {[%clk 0:02:24.5]} 28. Rxa1 {[%clk 0:00:48.4]} 28... Rcd6 {[%clk
0:02:06.1]} 29. Rc1 {[%clk 0:00:42.9]} 29... c6 {[%clk 0:02:05.6]} 30. Bxd8
{[%clk 0:00:37.5]} 30... Rxd8 {[%clk 0:02:05.7]} 31. h5 {[%clk 0:00:36.8]} 31...
d3 {[%clk 0:02:05.6]} 32. Rb1 {[%clk 0:00:31.1]} 32... c5 {[%clk 0:02:03.9]} 33.
Rc1 {[%clk 0:00:21.7]} 33... d2 {[%clk 0:01:59]} 34. Rxc5+ {[%clk 0:00:21]}
34... Qc6 {[%clk 0:01:59.3]} 35. Rxc6+ {[%clk 0:00:20.2]} 35... bxc6 {[%clk
0:02:00.2]} 0-1

[Event "*** Titled Tuesday Blitz"]
[Site "Chess.com"]
[Date "2020.12.01"]
[Round "4"]
[White "ElGasanov"]
[Black "Gulkov_Igor"]
[Result "1-0"]
[WhiteElo "2734"]
[BlackElo "2494"]
[TimeControl "180+1"]
[EndTime "10:36:48 PST"]
[Termination "ElGasanov won by resignation"]

1. d4 {[%clk 0:03:00.9]} 1... Nf6 {[%clk 0:02:59]} 2. c4 {[%clk 0:03:00.6]} 2...
e6 {[%clk 0:02:57.8]} 3. Nf3 {[%clk 0:02:59]} 3... Bb4+ {[%clk 0:02:56.8]} 4.
Nc3 {[%clk 0:02:58.3]} 4... c5 {[%clk 0:02:55.7]} 5. e3 {[%clk 0:02:56.9]} 5...
Nc6 {[%clk 0:02:53.9]} 6. Bd3 {[%clk 0:02:53.7]} 6... Bxc3+ {[%clk 0:02:52.7]}
7. bxc3 {[%clk 0:02:53.6]} 7... d6 {[%clk 0:02:52.8]} 8. O-O {[%clk 0:02:50.2]}
8... e5 {[%clk 0:02:52.6]} 9. Nd2 {[%clk 0:02:50.9]} 9... O-O {[%clk 0:02:46.7]}
10. Ne4 {[%clk 0:02:50.4]} 10... Qe7 {[%clk 0:02:40.5]} 11. Qf3 {[%clk 0:02:39]}
11... Nxe4 {[%clk 0:02:15.5]} 12. Bxe4 {[%clk 0:02:39.9]} 12... Bd7 {[%clk
0:02:11.3]} 13. Rb1 {[%clk 0:02:34.9]} 13... Rab8 {[%clk 0:01:44.9]} 14. dxc5
{[%clk 0:02:27.6]} 14... dxc5 {[%clk 0:01:44.1]} 15. Bd5 {[%clk 0:02:17.2]}
15... Kh8 {[%clk 0:01:36.6]} 16. e4 {[%clk 0:02:10.8]} 16... Nd8 {[%clk
0:01:22.6]} 17. Qg3 {[%clk 0:01:59.3]} 17... b6 {[%clk 0:01:14.5]} 18. f4 {[%clk
0:01:56.9]} 18... Nc6 {[%clk 0:01:00.6]} 19. f5 {[%clk 0:01:42]} 19... f6 {[%clk
0:00:59]} 20. Qh4 {[%clk 0:01:36.3]} 20... Qe8 {[%clk 0:00:41.3]} 21. Rf3 {[%clk
0:01:32.6]} 21... g5 {[%clk 0:00:38.8]} 22. fxg6 {[%clk 0:01:27.6]} 22... Qxg6
{[%clk 0:00:38.1]} 23. Rg3 {[%clk 0:01:20.8]} 23... Qe8 {[%clk 0:00:37.2]} 24.
Bh6 {[%clk 0:01:16.4]} 24... Qe7 {[%clk 0:00:36.9]} 25. Rf1 {[%clk 0:00:59.2]}
1-0

[Event "*** Titled Tuesday Blitz"]
[Site "Chess.com"]
[Date "2020.12.01"]
[Round "4"]
[White "jacky72"]
[Black "GigaQuparadze"]
[Result "1-0"]
[WhiteElo "2719"]
[BlackElo "2903"]
[TimeControl "180+1"]
[EndTime "10:36:50 PST"]
[Termination "jacky72 won by resignation"]

1. d4 {[%clk 0:03:00.9]} 1... Nf6 {[%clk 0:02:59.4]} 2. c4 {[%clk 0:03:01]} 2...
e6 {[%clk 0:02:59.2]} 3. Nf3 {[%clk 0:03:01.3]} 3... b6 {[%clk 0:02:58.8]} 4. g3
{[%clk 0:03:01]} 4... Bb4+ {[%clk 0:02:57]} 5. Bd2 {[%clk 0:02:58.5]} 5... c5
{[%clk 0:02:56.3]} 6. Bxb4 {[%clk 0:02:57.6]} 6... cxb4 {[%clk 0:02:56.2]} 7.
Bg2 {[%clk 0:02:58.5]} 7... Bb7 {[%clk 0:02:54.8]} 8. O-O {[%clk 0:02:59]} 8...
O-O {[%clk 0:02:54.4]} 9. a3 {[%clk 0:02:50]} 9... bxa3 {[%clk 0:02:51.8]} 10.
Rxa3 {[%clk 0:02:50.9]} 10... a5 {[%clk 0:02:51.8]} 11. Nc3 {[%clk 0:02:49.3]}
11... Na6 {[%clk 0:02:48.9]} 12. Nb5 {[%clk 0:02:43.8]} 12... Nb4 {[%clk
0:02:47.1]} 13. Re1 {[%clk 0:02:38.1]} 13... d5 {[%clk 0:02:38.9]} 14. Ne5
{[%clk 0:02:35.7]} 14... Rc8 {[%clk 0:02:38.5]} 15. Na7 {[%clk 0:02:31.5]} 15...
Ra8 {[%clk 0:02:29.5]} 16. Nb5 {[%clk 0:02:28.3]} 16... Ba6 {[%clk 0:02:28.9]}
17. e4 {[%clk 0:02:17.3]} 17... Bxb5 {[%clk 0:02:19.5]} 18. cxb5 {[%clk
0:02:13.4]} 18... dxe4 {[%clk 0:02:19.8]} 19. Bxe4 {[%clk 0:02:14.3]} 19... Nxe4
{[%clk 0:02:19.4]} 20. Rxe4 {[%clk 0:02:15.2]} 20... Qd5 {[%clk 0:02:18.8]} 21.
Rh4 {[%clk 0:02:00.9]} 21... g6 {[%clk 0:02:14]} 22. Qd2 {[%clk 0:01:55.6]}
22... h5 {[%clk 0:01:04.2]} 23. Qh6 {[%clk 0:01:39.8]} 23... Ra7 {[%clk
0:01:03.9]} 24. Rf3 {[%clk 0:01:36]} 24... Rc8 {[%clk 0:00:56.3]} 25. Rhf4
{[%clk 0:01:31.9]} 25... f5 {[%clk 0:00:47.2]} 26. Nxg6 {[%clk 0:01:27.3]} 26...
Nd3 {[%clk 0:00:37.2]} 27. Qh8+ {[%clk 0:01:19.7]} 27... Kf7 {[%clk 0:00:37.1]}
28. Qxc8 {[%clk 0:01:19.6]} 28... Kxg6 {[%clk 0:00:35.4]} 29. Rxd3 {[%clk
0:01:15.7]} 1-0

[Event "*** Titled Tuesday Blitz"]
[Site "Chess.com"]
[Date "2020.12.01"]
[Round "4"]
[White "Lukianoo"]
[Black "ChessWarrior7197"]
[Result "0-1"]
[WhiteElo "2769"]
[BlackElo "2991"]
[TimeControl "180+1"]
[EndTime "10:36:51 PST"]
[Termination "ChessWarrior7197 won on time"]

1. e4 {[%clk 0:02:47]} 1... c6 {[%clk 0:02:58.3]} 2. d4 {[%clk 0:02:46]} 2... d5
{[%clk 0:02:59.2]} 3. e5 {[%clk 0:02:46.3]} 3... Bf5 {[%clk 0:02:59]} 4. h4
{[%clk 0:02:45.7]} 4... h5 {[%clk 0:02:58.5]} 5. Bd3 {[%clk 0:02:44.8]} 5...
Bxd3 {[%clk 0:02:59]} 6. Qxd3 {[%clk 0:02:42.9]} 6... Qa5+ {[%clk 0:02:59.6]} 7.
Nd2 {[%clk 0:02:38.7]} 7... e6 {[%clk 0:02:59.4]} 8. Nf3 {[%clk 0:02:35.2]} 8...
Qa6 {[%clk 0:02:59.7]} 9. c4 {[%clk 0:02:30.1]} 9... Bb4 {[%clk 0:02:59.6]} 10.
O-O {[%clk 0:02:28.3]} 10... Nd7 {[%clk 0:02:57.5]} 11. b3 {[%clk 0:02:27.3]}
11... Ne7 {[%clk 0:02:57]} 12. a3 {[%clk 0:02:12.9]} 12... Nf5 {[%clk
0:02:54.6]} 13. Ra2 {[%clk 0:02:07]} 13... Be7 {[%clk 0:02:54]} 14. g3 {[%clk
0:02:03.4]} 14... O-O-O {[%clk 0:02:47.5]} 15. Qc2 {[%clk 0:01:55.3]} 15... Rhg8
{[%clk 0:02:40]} 16. cxd5 {[%clk 0:01:52.6]} 16... g5 {[%clk 0:02:35.5]} 17.
dxc6 {[%clk 0:01:52]} 17... bxc6 {[%clk 0:02:35.3]} 18. hxg5 {[%clk 0:01:39.8]}
18... Bxg5 {[%clk 0:02:36.2]} 19. Ne4 {[%clk 0:01:33.8]} 19... Be7 {[%clk
0:02:29.4]} 20. Bf4 {[%clk 0:01:09.5]} 20... h4 {[%clk 0:02:21.4]} 21. Rc1
{[%clk 0:00:57.1]} 21... Nb8 {[%clk 0:02:21.8]} 22. b4 {[%clk 0:00:53.2]} 22...
hxg3 {[%clk 0:02:20.8]} 23. fxg3 {[%clk 0:00:50.2]} 23... Nxd4 {[%clk
0:02:17.9]} 24. Nxd4 {[%clk 0:00:49]} 24... Rxd4 {[%clk 0:02:18.8]} 25. b5
{[%clk 0:00:39.3]} 25... Qxb5 {[%clk 0:02:14.4]} 26. Rb2 {[%clk 0:00:35.9]}
26... Qd5 {[%clk 0:01:52.1]} 27. Nf6 {[%clk 0:00:17.2]} 27... Bxf6 {[%clk
0:01:49.2]} 28. exf6 {[%clk 0:00:17.4]} 28... Rxf4 {[%clk 0:01:49.8]} 29. Rxb8+
{[%clk 0:00:13]} 29... Kxb8 {[%clk 0:01:50.7]} 0-1

[Event "*** Titled Tuesday Blitz"]
[Site "Chess.com"]
[Date "2020.12.01"]
[Round "4"]
[White "OlifantCZ"]
[Black "valeriocarnicelli"]
[Result "0-1"]
[WhiteElo "2233"]
[BlackElo "2573"]
[TimeControl "180+1"]
[EndTime "10:36:51 PST"]
[Termination "valeriocarnicelli won by resignation"]

1. c4 {[%clk 0:03:00.8]} 1... Nf6 {[%clk 0:02:58.4]} 2. g3 {[%clk 0:02:59.4]}
2... e6 {[%clk 0:02:57.5]} 3. Bg2 {[%clk 0:02:58.8]} 3... d5 {[%clk 0:02:57.6]}
4. Nf3 {[%clk 0:02:59.5]} 4... c6 {[%clk 0:02:57]} 5. b3 {[%clk 0:02:59]} 5...
Be7 {[%clk 0:02:55.7]} 6. O-O {[%clk 0:02:58.4]} 6... O-O {[%clk 0:02:55.5]} 7.
Bb2 {[%clk 0:02:56.9]} 7... Nbd7 {[%clk 0:02:55.6]} 8. d3 {[%clk 0:02:55]} 8...
b6 {[%clk 0:02:55.9]} 9. Nc3 {[%clk 0:02:53.9]} 9... Bb7 {[%clk 0:02:56.2]} 10.
e4 {[%clk 0:02:53.6]} 10... c5 {[%clk 0:02:45.8]} 11. cxd5 {[%clk 0:02:47.7]}
11... exd5 {[%clk 0:02:45.4]} 12. e5 {[%clk 0:02:45.3]} 12... Ne8 {[%clk
0:02:44]} 13. d4 {[%clk 0:02:42.5]} 13... Nc7 {[%clk 0:02:36.6]} 14. Re1 {[%clk
0:02:36.9]} 14... Ne6 {[%clk 0:02:36.2]} 15. dxc5 {[%clk 0:02:33.8]} 15... Ndxc5
{[%clk 0:02:34.3]} 16. Nb5 {[%clk 0:02:30.9]} 16... a6 {[%clk 0:02:26.8]} 17.
Nbd4 {[%clk 0:02:30.2]} 17... Ne4 {[%clk 0:02:23.3]} 18. a3 {[%clk 0:02:26.5]}
18... Rc8 {[%clk 0:02:21.5]} 19. b4 {[%clk 0:02:20.1]} 19... Qd7 {[%clk
0:01:40.3]} 20. Nf5 {[%clk 0:02:17.5]} 20... Rfd8 {[%clk 0:01:32.9]} 21. Nxe7+
{[%clk 0:02:16.4]} 21... Qxe7 {[%clk 0:01:33]} 22. Nd4 {[%clk 0:02:17.1]} 22...
Rc4 {[%clk 0:01:24.3]} 23. h4 {[%clk 0:02:02]} 23... Rdc8 {[%clk 0:01:13.8]} 24.
Nf5 {[%clk 0:02:01.5]} 24... Qc7 {[%clk 0:00:57.3]} 25. Bxe4 {[%clk 0:01:53.4]}
25... Rxe4 {[%clk 0:00:57.1]} 26. Rxe4 {[%clk 0:01:53.1]} 26... dxe4 {[%clk
0:00:58]} 27. Rc1 {[%clk 0:01:52.4]} 27... Rd8 {[%clk 0:00:42.8]} 28. Rxc7
{[%clk 0:01:34.8]} 28... Rxd1+ {[%clk 0:00:41.1]} 29. Kh2 {[%clk 0:01:35.4]}
29... Nxc7 {[%clk 0:00:41.3]} 0-1

[Event "*** Titled Tuesday Blitz"]
[Site "Chess.com"]
[Date "2020.12.01"]
[Round "4"]
[White "GregShahade"]
[Black "WPWPWP-2015"]
[Result "1-0"]
[WhiteElo "2701"]
[BlackElo "2488"]
[TimeControl "180+1"]
[EndTime "10:36:58 PST"]
[Termination "GregShahade won by checkmate"]

1. e4 {[%clk 0:03:00.9]} 1... e5 {[%clk 0:02:58.9]} 2. Nf3 {[%clk 0:03:01]} 2...
Nf6 {[%clk 0:02:58.6]} 3. Nxe5 {[%clk 0:03:00.3]} 3... d6 {[%clk 0:02:58.8]} 4.
Nf3 {[%clk 0:02:59.9]} 4... Nxe4 {[%clk 0:02:59.1]} 5. Nc3 {[%clk 0:03:00.6]}
5... Nxc3 {[%clk 0:02:58.7]} 6. dxc3 {[%clk 0:03:01.5]} 6... Be7 {[%clk
0:02:59.2]} 7. Be3 {[%clk 0:03:01.3]} 7... O-O {[%clk 0:02:59.1]} 8. Qd2 {[%clk
0:03:02]} 8... Nc6 {[%clk 0:02:59.2]} 9. O-O-O {[%clk 0:03:01.9]} 9... Ne5
{[%clk 0:02:59.8]} 10. Kb1 {[%clk 0:03:02.1]} 10... c6 {[%clk 0:02:59.8]} 11.
Nxe5 {[%clk 0:02:52.6]} 11... dxe5 {[%clk 0:02:59.7]} 12. Bd3 {[%clk 0:02:50.2]}
12... Be6 {[%clk 0:02:55.7]} 13. Qe2 {[%clk 0:02:50.2]} 13... Qa5 {[%clk
0:02:50.7]} 14. c4 {[%clk 0:02:46.2]} 14... b5 {[%clk 0:02:38.6]} 15. Bd2 {[%clk
0:02:42.6]} 15... Qc7 {[%clk 0:02:28.6]} 16. Rhe1 {[%clk 0:02:37.9]} 16... Bf6
{[%clk 0:02:04.6]} 17. Bc3 {[%clk 0:02:33.2]} 17... bxc4 {[%clk 0:01:53.7]} 18.
Bxc4 {[%clk 0:02:29.7]} 18... Rfe8 {[%clk 0:01:53.3]} 19. f3 {[%clk 0:02:22.9]}
19... Bf5 {[%clk 0:01:44.9]} 20. Bd3 {[%clk 0:02:09.6]} 20... Bg6 {[%clk
0:01:31]} 21. Bxg6 {[%clk 0:02:06.7]} 21... hxg6 {[%clk 0:01:31.9]} 22. a3
{[%clk 0:01:55.6]} 22... Rab8 {[%clk 0:01:27.8]} 23. Qc4 {[%clk 0:01:54.9]}
23... Re6 {[%clk 0:01:23.6]} 24. Re2 {[%clk 0:01:47.4]} 24... Qb7 {[%clk
0:01:05.8]} 25. Red2 {[%clk 0:01:40.7]} 25... Re7 {[%clk 0:00:50.4]} 26. Rd8+
{[%clk 0:01:32.4]} 26... Rxd8 {[%clk 0:00:43.5]} 27. Rxd8+ {[%clk 0:01:33.3]}
27... Kh7 {[%clk 0:00:43.3]} 28. Qg4 {[%clk 0:01:29.5]} 28... g5 {[%clk
0:00:02]} 29. Qh5# {[%clk 0:01:29]} 1-0

[Event "*** Titled Tuesday Blitz"]
[Site "Chess.com"]
[Date "2020.12.01"]
[Round "4"]
[White "parintele_chess"]
[Black "LastHeroJr"]
[Result "1-0"]
[WhiteElo "2201"]
[BlackElo "2382"]
[TimeControl "180+1"]
[EndTime "10:37:04 PST"]
[Termination "parintele_chess won by resignation"]

1. c4 {[%clk 0:02:59.4]} 1... Nf6 {[%clk 0:02:57.7]} 2. g3 {[%clk 0:02:59.1]}
2... g6 {[%clk 0:02:57.9]} 3. Bg2 {[%clk 0:02:59.3]} 3... Bg7 {[%clk 0:02:58.5]}
4. Nf3 {[%clk 0:02:59.2]} 4... O-O {[%clk 0:02:58.6]} 5. O-O {[%clk 0:02:58.5]}
5... d6 {[%clk 0:02:59]} 6. Nc3 {[%clk 0:02:57.2]} 6... e5 {[%clk 0:02:58.5]} 7.
d3 {[%clk 0:02:57.2]} 7... Nc6 {[%clk 0:02:58.4]} 8. Rb1 {[%clk 0:02:56.3]} 8...
Bf5 {[%clk 0:02:58.4]} 9. e4 {[%clk 0:02:46.2]} 9... Bg4 {[%clk 0:02:57.8]} 10.
h3 {[%clk 0:02:46.2]} 10... Bxf3 {[%clk 0:02:58]} 11. Bxf3 {[%clk 0:02:47.1]}
11... Nd7 {[%clk 0:02:56]} 12. b4 {[%clk 0:02:42.4]} 12... a5 {[%clk 0:02:45.4]}
13. b5 {[%clk 0:02:41.1]} 13... Nd4 {[%clk 0:02:45.4]} 14. Bg2 {[%clk
0:02:40.8]} 14... Nc5 {[%clk 0:02:43.2]} 15. Ne2 {[%clk 0:02:37.5]} 15... f5
{[%clk 0:01:58.8]} 16. Nxd4 {[%clk 0:02:36.7]} 16... exd4 {[%clk 0:01:59.7]} 17.
exf5 {[%clk 0:02:35.1]} 17... Rxf5 {[%clk 0:01:58.4]} 18. Ba3 {[%clk 0:02:34.4]}
18... Rb8 {[%clk 0:01:44.9]} 19. Bxc5 {[%clk 0:02:34]} 19... Rxc5 {[%clk
0:01:41.3]} 20. Qg4 {[%clk 0:02:30.4]} 20... Re5 {[%clk 0:01:37.3]} 21. Rbe1
{[%clk 0:02:15.2]} 21... Qe7 {[%clk 0:01:36.5]} 22. Rxe5 {[%clk 0:02:14.9]}
22... Qxe5 {[%clk 0:01:37.4]} 23. Qd7 {[%clk 0:02:14.9]} 23... d5 {[%clk
0:01:13.9]} 24. Bxd5+ {[%clk 0:02:10.8]} 24... Kh8 {[%clk 0:01:13.9]} 25. Bxb7
{[%clk 0:02:03.3]} 25... Qe2 {[%clk 0:01:00.9]} 26. Qxc7 {[%clk 0:02:01.9]}
26... Be5 {[%clk 0:01:01.1]} 27. Qe7 {[%clk 0:01:55.3]} 27... Rxb7 {[%clk
0:00:14.8]} 28. Qxb7 {[%clk 0:01:53.6]} 28... Qxd3 {[%clk 0:00:15.1]} 29. Qc8+
{[%clk 0:01:45.8]} 29... Kg7 {[%clk 0:00:15.1]} 30. Qd7+ {[%clk 0:01:44.8]}
30... Kh6 {[%clk 0:00:15.5]} 31. b6 {[%clk 0:01:43.2]} 31... Bxg3 {[%clk
0:00:15.3]} 32. fxg3 {[%clk 0:01:42.5]} 32... Qxg3+ {[%clk 0:00:16.2]} 33. Kh1
{[%clk 0:01:42.8]} 33... d3 {[%clk 0:00:16.6]} 34. Qg4 {[%clk 0:01:39.5]} 34...
Qe3 {[%clk 0:00:16.6]} 35. Qh4+ {[%clk 0:01:39.4]} 35... Kg7 {[%clk 0:00:16.4]}
36. Qf6+ {[%clk 0:01:39.7]} 36... Kh6 {[%clk 0:00:16.3]} 37. Qf4+ {[%clk
0:01:39.9]} 37... Qxf4 {[%clk 0:00:16.2]} 38. Rxf4 {[%clk 0:01:40.7]} 38... Kg5
{[%clk 0:00:17.1]} 1-0

[Event "*** Titled Tuesday Blitz"]
[Site "Chess.com"]
[Date "2020.12.01"]
[Round "4"]
[White "Chessalary"]
[Black "yoelpolanco"]
[Result "0-1"]
[WhiteElo "2406"]
[BlackElo "2240"]
[TimeControl "180+1"]
[EndTime "10:37:06 PST"]
[Termination "yoelpolanco won by resignation"]

1. e4 {[%clk 0:03:00.1]} 1... e5 {[%clk 0:02:26.5]} 2. Nf3 {[%clk 0:03:00.8]}
2... Nc6 {[%clk 0:02:26.8]} 3. Bc4 {[%clk 0:03:00.7]} 3... Nf6 {[%clk
0:02:26.5]} 4. d3 {[%clk 0:03:00.6]} 4... Bc5 {[%clk 0:02:26.3]} 5. O-O {[%clk
0:03:01]} 5... d6 {[%clk 0:02:26.6]} 6. c3 {[%clk 0:03:00.5]} 6... a5 {[%clk
0:02:26.2]} 7. a4 {[%clk 0:02:59.4]} 7... h6 {[%clk 0:02:21.2]} 8. h3 {[%clk
0:02:59.5]} 8... g5 {[%clk 0:02:20.7]} 9. d4 {[%clk 0:02:56.9]} 9... Ba7 {[%clk
0:02:16.8]} 10. dxe5 {[%clk 0:02:46.9]} 10... Nxe5 {[%clk 0:02:16.1]} 11. Nxe5
{[%clk 0:02:44.6]} 11... dxe5 {[%clk 0:02:15.7]} 12. Qb3 {[%clk 0:02:42.8]}
12... Qe7 {[%clk 0:02:12.2]} 13. Nd2 {[%clk 0:02:40.1]} 13... g4 {[%clk
0:02:10.8]} 14. hxg4 {[%clk 0:02:38.7]} 14... Nxg4 {[%clk 0:02:10.5]} 15. Nf3
{[%clk 0:02:35.6]} 15... Rg8 {[%clk 0:02:09.8]} 16. Bd2 {[%clk 0:02:18.9]} 16...
h5 {[%clk 0:01:58.1]} 17. Rad1 {[%clk 0:02:17.5]} 17... h4 {[%clk 0:01:54.2]}
18. Bg5 {[%clk 0:01:06.5]} 18... Rxg5 {[%clk 0:01:52.7]} 19. Bxf7+ {[%clk
0:01:03.1]} 19... Kf8 {[%clk 0:01:48.1]} 20. Nxg5 {[%clk 0:00:54.6]} 20... Qxg5
{[%clk 0:01:46.2]} 21. Qd5 {[%clk 0:00:47.5]} 21... Bf5 {[%clk 0:01:37]} 22.
exf5 {[%clk 0:00:41.9]} 22... Qf4 {[%clk 0:01:19.4]} 23. g3 {[%clk 0:00:40.5]}
23... hxg3 {[%clk 0:01:14.1]} 24. Qg2 {[%clk 0:00:17.9]} 24... gxf2+ {[%clk
0:01:11.3]} 25. Kh1 {[%clk 0:00:17.4]} 25... Qh6+ {[%clk 0:01:10]} 0-1

[Event "*** Titled Tuesday Blitz"]
[Site "Chess.com"]
[Date "2020.12.01"]
[Round "4"]
[White "DrVelja"]
[Black "FrostNova"]
[Result "0-1"]
[WhiteElo "2788"]
[BlackElo "3010"]
[TimeControl "180+1"]
[EndTime "10:37:07 PST"]
[Termination "FrostNova won on time"]

1. e4 {[%clk 0:03:00.8]} 1... c5 {[%clk 0:02:59.6]} 2. Nc3 {[%clk 0:02:58.7]}
2... d6 {[%clk 0:03:00.5]} 3. f4 {[%clk 0:02:55.4]} 3... Nc6 {[%clk 0:02:55.3]}
4. Nf3 {[%clk 0:02:53.8]} 4... g6 {[%clk 0:02:55.1]} 5. Bb5 {[%clk 0:02:53.7]}
5... Bg7 {[%clk 0:02:54.7]} 6. Bxc6+ {[%clk 0:02:53.4]} 6... bxc6 {[%clk
0:02:54.7]} 7. O-O {[%clk 0:02:53.2]} 7... Nf6 {[%clk 0:02:53.6]} 8. d3 {[%clk
0:02:53.1]} 8... Rb8 {[%clk 0:02:53.3]} 9. Qe1 {[%clk 0:02:51.3]} 9... Bg4
{[%clk 0:02:51.7]} 10. e5 {[%clk 0:02:39.5]} 10... Nd5 {[%clk 0:02:48.7]} 11.
exd6 {[%clk 0:02:37.1]} 11... Bxf3 {[%clk 0:02:25.1]} 12. Rxf3 {[%clk
0:02:19.1]} 12... Nxc3 {[%clk 0:02:11.7]} 13. dxe7 {[%clk 0:02:01.2]} 13... Qa5
{[%clk 0:02:09.7]} 14. bxc3 {[%clk 0:01:43.9]} 14... Qxc3 {[%clk 0:02:01.6]} 15.
Qe4 {[%clk 0:01:33.3]} 15... Bd4+ {[%clk 0:01:55.9]} 16. Kh1 {[%clk 0:01:02.5]}
16... Qxa1 {[%clk 0:01:50]} 17. Rf1 {[%clk 0:00:45.7]} 17... Rb1 {[%clk
0:01:49.5]} 18. Qxc6+ {[%clk 0:00:35.4]} 18... Kxe7 {[%clk 0:01:42.9]} 19. f5
{[%clk 0:00:29.1]} 19... Rxc1 {[%clk 0:01:38.8]} 20. f6+ {[%clk 0:00:21]} 20...
Bxf6 {[%clk 0:01:38.3]} 21. Qxc5+ {[%clk 0:00:12.3]} 21... Ke8 {[%clk
0:01:38.1]} 22. Qe3+ {[%clk 0:00:04.7]} 22... Qe5 {[%clk 0:01:32.9]} 23. Qxc1
{[%clk 0:00:04.6]} 23... Kf8 {[%clk 0:01:32.6]} 24. Re1 {[%clk 0:00:03.1]} 24...
Qg5 {[%clk 0:01:29.8]} 25. Qa3+ {[%clk 0:00:01.2]} 25... Kg7 {[%clk 0:01:29.8]}
26. Qxa7 {[%clk 0:00:02.1]} 26... Qd2 {[%clk 0:01:29.3]} 27. Rf1 {[%clk
0:00:01.4]} 27... Re8 {[%clk 0:01:27.8]} 0-1